Cogmind - Beta 17 @@@ ROGUE MODE // 2026.06.23 @ 22:11:17 Player: MolePlayingNice Result: Destroyed by 0Z-USV(R) with Subdweller Machine Gun Performance ------------- Evolutions (0) 0 Regions Visited (2) 400 Robots Destroyed (24) 120 Value Destroyed (662) 662 Prototype IDs (15) 300 Alien Tech Used (0) 0 Bonus (7876) 7876 TOTAL SCORE: 9358 Bonus ------- Follower Combat Kills 42 Prayed to X0-1V1 5000 Major X0-1V1 Interference 3000 Friendly Fire -166 Cogmind --------- Core Integrity 0/225 Matter 276/700 Energy 1196/1200 System Corruption 11% Temperature Cool (0) Movement Rolling (85) Location -10/Subcaves Parts ------- > --- POWER (2) -------- (None) > --- PROPULSION (2) --- Wheel (fused) Armored Wheel > --- UTILITY (2) ------ Makeshift Light Armor Plating (fused) X0-1V1's Piety Tracker > --- WEAPON (1) ------- Slug Cannon (fused) > --- INVENTORY (5) ---- Meta Core Self-contained Transmogrifier Subdweller Shrapnel Launcher Peak State ------------ > --- POWER ------------ Subdweller Power Source Subdweller Power Source > --- PROPULSION ------- Armored Wheel > --- UTILITY ---------- Makeshift System Restoration Module X0-1V1's Piety Tracker > --- WEAPON ----------- Subdweller Machine Gun Subdweller Machine Gun > --- INVENTORY -------- Armored Wheel Cobbler Unit Subdweller Machine Gun Subdweller Shrapnel Launcher [Rating: 28] Favorites ----------- Power Ion Engine Engine Ion Engine Propulsion Light Treads Treads Light Treads Leg Aluminum Leg Wheel Armored Wheel Utility X0-1V1's Piety Tracker Device X0-1V1's Piety Tracker Storage Small Storage Unit Protection Makeshift Light Armor Plating Weapon Battle Cannon Energy Gun Salvaging Laser Ballistic Gun Assault Rifle Ballistic Cannon Battle Cannon Launcher Subdweller Shrapnel Launcher Build | -11 -10 -10 ------- Run | Yrd Mat Sub Slots Evolved . | . . . Power . | . . . Propulsion . | . . . Utility . | . . . Weapon . | . . . Parts Attached 38 | . 6 32 Power 5 | . . 5 Engine 5 | . . 5 Core . | . . . Reactor . | . . . Propulsion 10 | . 3 7 Treads 4 | . 2 2 Leg 1 | . 1 . Wheel 5 | . . 5 Hover . | . . . Flight . | . . . Utility 8 | . 1 7 Device 7 | . 1 6 Storage . | . . . Processor . | . . . Hackware . | . . . Protection 1 | . . 1 Artifact . | . . . Weapon 15 | . 2 13 Energy Gun 5 | . 1 4 Energy Cannon . | . . . Ballistic Gun 5 | . 1 4 Ballistic Cannon 4 | . . 4 Launcher 1 | . . 1 Special Weapon . | . . . Impact Weapon . | . . . Slashing Weapon . | . . . Piercing Weapon . | . . . Special Melee Weapon . | . . . Unidentified Prototypes 1 | . . 1 Parts Lost 14 | . . 14 Power 2 | . . 2 Propulsion 3 | . . 3 Utility 3 | . . 3 Weapon 6 | . . 6 Highest Loss Streak 3 | . . 3 To Critical Strikes . | . . . Average Backups 4 | . 7 4 Power . | . 1 . Propulsion 1 | . 4 1 Utility 1 | . . 1 Weapon 1 | . 1 1 Tool/Special . | . . . Unused Backups 8 | . . 8 Power . | . . . Propulsion 5 | . . 5 Utility 1 | . . 1 Weapon . | . . . Tool/Special 2 | . . 2 Average Slot Usage (%) 83 | . 74 84 Engine 6 | . 2 7 Treads 17 | . 2 19 Leg 3 | . 25 . Wheel 4 | . . 5 Device 22 | . 2 25 Storage 2 | . 14 . Energy Gun 7 | . 14 7 Ballistic Gun 5 | . 13 3 Ballistic Cannon 12 | . . 14 Peak Build Rating 28 | . 6 28 Average Rating 19 | . 5 21 On Entrance 6 | 6 6 6 Avg Prop Armor Cover (%) . | . . . Naked Turns . | . . . Heaviest Build 24 | 11 11 24 Greatest Support 40 | 20 40 40 Greatest Overweight (x) 2 | . . 2 Average Overweight (x) . | . . . Largest Inventory Capacity 8 | . 8 8 Average Capacity 5 | . 8 5 Most Carried 8 | . 8 8 Average Carried 4 | . 7 4 Final Capacity 8 | 8 8 5 Final Carried 8 | 6 8 3 Class Distribution -------------------- 96% | Mutant 3% | Scavenger-Mutant Dominant Class ---------------- Mutant | -10/Materials Mutant | -10/Subcaves Resources | -11 -10 -10 ----------- Run | Yrd Mat Sub Matter Collected 1409 | 195 66 1148 Remotely . | . . . Salvage Created 699 | . 42 657 Parts 46 | . 6 40 Haulers Intercepted . | . . . Recyclers Shooed . | . . . Parts Field Recycled . | . . . Retrieved Matter . | . . . Parts Self-Destructed 33 | . . 33 Prevented . | . . . Parts Restored . | . . . Kills | -11 -10 -10 ------- Run | Yrd Mat Sub Combat Hostiles Destroyed 24 | . 2 22 Melee 2 | . . 2 Guns 15 | . 2 13 Cannons 6 | . . 6 Classes Destroyed 6 | . 2 4 Operator 1 | . 1 . Drone 2 | . . 2 Swarmer 7 | . 2 5 Grunt 4 | . . 4 Heavy 1 | . . 1 Subdweller 11 | . . 11 Best Kill Streak 8 | . 3 8 Combat Bots Only 8 | . 2 8 Max Kills in Single Turn 2 | . 1 2 Gunslinging . | . . . Exploded . | . . . Melee 1 | . . 1 Uniques/NPCs Destroyed . | . . . Combat | -11 -10 -10 -------- Run | Yrd Mat Sub Hostile Shots Fired 334 | . 7 327 Missed 72 | . 2 70 Hits 262 | . 5 257 Melee 149 | . . 149 Projectile 113 | . 5 108 Critical Strikes 3 | . . 3 Damage Taken 2201 | . 60 2141 Core 687 | . 26 661 Absorbed by Shields . | . . . Core Remaining (%) 100 | 100 . . Volleys Fired 148 | . 6 142 Largest 2 | . 2 2 Hottest 93 | . 50 93 Shots Fired 230 | . 11 219 Gun 139 | . 11 128 Cannon 90 | . . 90 Launcher 1 | . . 1 Special . | . . . Kinetic 154 | . 6 148 Thermal 74 | . 5 69 Explosive . | . . . Electromagnetic 2 | . . 2 Robot Hit Streak 19 | . 7 19 Robot Miss Streak 3 | . 2 3 Penetration Max . | . . . Secondary Targets 4 | . 1 3 Max Gunslinging Chain 1 | . 1 1 Shots Hit Robots 123 | . 9 114 Core Hits 43 | . 3 40 Critical Kills . | . . . Critical Parts Destroyed . | . . . Critical Strikes 4 | . . 4 Destroy 3 | . . 3 Blast 1 | . . 1 Melee Attacks . | . . . Impact . | . . . Slashing . | . . . Piercing . | . . . Sneak Attacks . | . . . Combat Hostiles . | . . . Follow-up Attacks . | . . . Damage Inflicted 2191 | . 99 2092 Guns 1445 | . 99 1346 Cannons 667 | . . 667 Explosions 66 | . . 66 Melee . | . . . Ramming 13 | . . 13 Kinetic 1471 | . 65 1406 Thermal 707 | . 34 673 Explosive . | . . . Electromagnetic . | . . . Impact . | . . . Slashing . | . . . Piercing . | . . . Highest Corruption 11 | . . 11 Average Corruption 3 | . . 3 Corruption Purged 4 | . . 4 Corruption Blocked . | . . . Effects 55 | . . 55 Message Errors 6 | . . 6 Matter Fused 15 | . . 15 Heat Flow Errors 5 | . . 5 Energy Discharges 7 | . . 7 Parts Fused 2 | . . 2 Data Loss (minor) 10 | . . 10 Data Loss (major) 1 | . . 1 Misfires 7 | . . 7 Weapon Failures 2 | . . 2 Overload Shots . | . . . Overflow Damage 25 | . . 25 Projectiles 14 | . . 14 Explosions 11 | . . 11 Melee . | . . . Knockbacks 7 | . . 7 Impact . | . . . Kinetic 7 | . . 7 Secondary . | . . . Self-Inflicted Damage 62 | . . 62 Shots 1 | . . 1 Rammed 14 | . . 14 Targets Rammed 16 | . . 16 Kicked . | . . . Crushed 2 | . . 2 Highest Temperature 218 | . 6 218 Average Temperature 101 | . 6 103 Received Heat Transfer 273 | . 12 261 Siege Activations . | . . . Martial Activations . | . . . Shielding Activations . | . . . Robots Disrupted . | . . . Combat Hostiles . | . . . Robots Corrupted . | . . . Combat Hostiles . | . . . Parts Fried . | . . . Impact Corruptions . | . . . Robots Melted . | . . . Combat Hostiles . | . . . Parts Melted 1 | . . 1 Heat Transferred 1175 | . 100 1075 Parts Sabotaged . | . . . Parts Stolen 16 | . . 16 Parts Stripped . | . . . Power Chain Reactions . | . . . Alert | -11 -10 -10 ------- Run | Yrd Mat Sub Maximum Alert Level . | . . . Low Security (%) 100 | . 100 . Level 1 . | . . . Level 2 . | . . . Level 3 . | . . . Level 4 . | . . . Level 5 . | . . . High Security . | . . . Max Security . | . . . Peak Influence 57 | . 57 . Initial . | . . . Average 4 | . 4 . Influence Increases 731 | . 70 661 Destroy 0b10 Robot/C 380 | . 40 340 Destroy 0b10 Robot/NC 5 | . 5 . Destroy Leader 10 | . 10 . Allied During Kill 6 | . . 6 Lose Combat Pursuer 330 | . 15 315 Influence Decreases 275 | . 16 259 Entered New Map 26 | . . 26 Time Decay 159 | . 16 143 Lost Part 90 | . . 90 Squads Dispatched 1 | . 1 . Investigation . | . . . Extermination . | . . . Reinforcement 1 | . 1 . Assault . | . . . Garrison . | . . . Intercept . | . . . Searches Triggered . | . . . Construction Impeded . | . . . Haulers Reinforced . | . . . Active Scanning Responses . | . . . Cargo Convoy Interrupts . | . . . Stealth | -11 -10 -10 --------- Run | Yrd Mat Sub Distress Signals 1 | . 1 . Communications Jammed . | . . . Distress Signals . | . . . Times Spotted 57 | . 6 51 Peak Tracking Total 8 | . 3 8 Tactical Retreats 11 | . 1 10 Traps | -11 -10 -10 ------- Run | Yrd Mat Sub Traps Triggered 3 | . 2 1 Indirectly . | . . . Trap Hack Attempts . | . . . Triggered . | . . . Disarmed . | . . . Reprogrammed . | . . . Reused . | . . . Traps Extracted . | . . . Installed 1 | . . 1 Triggered . | . . . Machines | -11 -10 -10 ---------- Run | Yrd Mat Sub Machines Disabled 1 | . . 1 Max in Single Turn 1 | . . 1 Machines Repaired . | . . . Machines Dismantled . | . . . Machines Sabotaged . | . . . Overloaded Fab Kills . | . . . Hacking | -11 -10 -10 --------- Run | Yrd Mat Sub Machines Accessed 2 | . . 2 Terminals . | . . . Fabricators . | . . . Repair Stations . | . . . Recycling Units . | . . . Scanalyzers . | . . . Garrison Access . | . . . Total Hacks 12 | . . 12 Successful 12 | . . 12 Failed . | . . . Catastrophic . | . . . Database Lockouts . | . . . Manual 1 | . 1 . Terminals . | . . . Fabricators . | . . . Repair Stations . | . . . Recycling Units . | . . . Scanalyzers . | . . . Garrison Access . | . . . Terminal Hacks 12 | . . 12 Record 11 | . . 11 Proto ID Catalog 1 | . . 1 Fabricator Hacks . | . . . Repair Station Hacks . | . . . Recycling Unit Hacks . | . . . Scanalyzer . | . . . Garrison Access Hacks . | . . . Unauthorized Hacks . | . . . Terminals . | . . . Fabricators . | . . . Repair Stations . | . . . Recycling Units . | . . . Scanalyzers . | . . . Garrison Access . | . . . Data Cores Recovered . | . . . Used . | . . . Hacking Detections . | . . . Full Trace Events . | . . . Feedback Events . | . . . Feedback Blocked . | . . . Robot Schematics Acquired . | . . . Robots Built . | . . . Authchips . | . . . Time . | . . . Total Robot Build Rating . | . . . Part Schematics Acquired . | . . . Parts Built . | . . . Authchips . | . . . Time . | . . . Total Part Build Rating . | . . . Part Studies Acquired . | . . . Parts Repaired . | . . . Time . | . . . Parts Recycled . | . . . Recycled Matter . | . . . Retrieved Matter . | . . . Retrieved Components . | . . . Parts Scanalyzed . | . . . Part Schematics Acquired . | . . . Parts Damaged . | . . . Bothacking | -11 -10 -10 ------------ Run | Yrd Mat Sub Used RIF Installer . | . . . Robots Hacked . | . . . Non-combat . | . . . Combat . | . . . Robot Hacks Applied . | . . . Relay Couplers Released . | . . . Fabnet Peak Effective % . | . . . Robots Rewired . | . . . Allies Hacked . | . . . Hacks Repelled . | . . . Allies | -11 -10 -10 -------- Run | Yrd Mat Sub Total Allies 1 | . . 1 Largest Group 1 | . . 1 Highest-Rated Group 90 | . . 90 Highest-Rated Ally 90 | . . 90 Total Orders . | . . . Ally Attacks 12 | . . 12 Total Damage 328 | . . 328 Kills 6 | . . 6 Allies Corrupted . | . . . Allies Melted . | . . . X0-1V1 Amusement Gains 33 | . 18 15 Good Acts 32 | . . 32 Bad Acts 45 | . . 45 Intel | -11 -10 -10 ------- Run | Yrd Mat Sub Active Infowar (turns) 484 | . 79 405 Optics 146 | . . 146 Seismic 338 | . 79 259 Robot Analysis Total . | . . . Derelict Logs Recovered 1 | . . 1 Drone Launches . | . . . Drone Recoveries . | . . . Exploration | -11 -10 -10 ------------- Run | Yrd Mat Sub Turns Passed 3808 | . 519 3289 Spaces Moved 2087 | 1 191 1895 Core 10 | . . 10 Treads 1327 | . 20 1307 Legs 172 | 1 171 . Wheels 578 | . . 578 Hover . | . . . Flight . | . . . Fastest Speed 50 | 120 120 50 Average Speed 138 | 120 124 139 Slowest Speed 160 | 120 160 160 Overloaded Moves . | . . . Propulsion Burnouts . | . . . Robots Hopped . | . . . Potential Cave-ins . | . . . Cave-ins Triggered . | . . . Exploration Rate (%) 45 | 1 44 92 Regions Visited 2 Branch Regions 1 Pre-discovered Areas . | . . . Known Exits Taken . | . . . Unknown Exits Taken 2 | 1 1 . Scrap Searched 3 | . . 3 Spaces Dug 4 | . . 4 Terrain Destroyed 29 | . . 29 Melee . | . . . Projectile 10 | . . 10 AOE 19 | . . 19 Terrain Rammed . | . . . Walls Destroyed . | . . . Machines Disabled . | . . . Actions | -11 -10 -10 --------- Run | Yrd Mat Sub Total 2792 | . 463 2329 Wait 439 | . 256 183 Move 2085 | . 190 1895 Hop . | . . . Pick Up 19 | . 3 16 Fast Attach 27 | . 4 23 Attach 15 | . . 15 Detach 4 | . . 4 Swap 18 | . 3 15 Drop 20 | . 1 19 Fire 148 | . 6 142 Melee . | . . . Ram 4 | . . 4 Kick . | . . . Crush 12 | . . 12 Escape Stasis . | . . . Rewire . | . . . Trap 1 | . . 1 Miscellaneous . | . . . Route ------- -11/Scrapyard -10/Materials -10/Subcaves (discovered 2 exits: [*Mat] / *Rec) History --------- Turn | Location | Event 1 | -11/Scrapyard | Discovered new exit (range 0) 1 | -11/Scrapyard | Entered Materials 2 | -10/Materials | Met a group of wandering Federalists 306 | -10/Materials | Build established: Mutant 510 | -10/Materials | Discovered new exit (range 7) 520 | -10/Materials | Prayed at D.C.S.S. Altar Unit 520 | -10/Materials | Entered Subcaves 521 | -10/Subcaves | Approached by a straggling Scientist 564 | -10/Subcaves | Shifting Twisted Machinery released Mak. System Restoration Module 595 | -10/Subcaves | Shifting Twisted Machinery released Flamer 644 | -10/Subcaves | Heat dissipation permanently improved by X0-1V1 (+15) 770 | -10/Subcaves | Core integrity permanently improved by X0-1V1 (+200) 787 | -10/Subcaves | Ambushed by Subdweller buried in earth 817 | -10/Subcaves | Sensor Array reconfigured into Item Mimic 1147 | -10/Subcaves | Sight range permanently improved by X0-1V1 (+1) 1166 | -10/Subcaves | Shifting Twisted Machinery released Piercing Trap 1171 | -10/Subcaves | Shifting Twisted Machinery released Battle Cannon 1177 | -10/Subcaves | Discovered new exit (range 7) 1391 | -10/Subcaves | A swath of the cavern ceiling suddenly collapsed 1487 | -10/Subcaves | Visited Clippyterm 1491 | -10/Subcaves | Learned Research machine intel 1522 | -10/Subcaves | A swath of the cavern ceiling suddenly collapsed 1650 | -10/Subcaves | Learned Materials terminal intel 1746 | -10/Subcaves | Identified exit to Recycling 1746 | -10/Subcaves | X0-1V1 revealed exit location to -7/Recycling 1807 | -10/Subcaves | Sub. Laser reconfigured into Item Mimic 1818 | -10/Subcaves | Core integrity fell below 50% 1865 | -10/Subcaves | Core integrity restored by X0-1V1 (+40) 1871 | -10/Subcaves | Lost 3 parts (1p1n1w) 2480 | -10/Subcaves | Core integrity restored by X0-1V1 (+40) 2777 | -10/Subcaves | Curiously followed by a Cobbler waking with a query about "LVR3C" 2811 | -10/Subcaves | X0-1V1 sent hostile S-10 Pest (x3) 2817 | -10/Subcaves | X0-1V1 sent allied H-61 Shepherd (x1) 2833 | -10/Subcaves | X0-1V1 mutated your Propulsion slot to Power slot 2849 | -10/Subcaves | X0-1V1 sent you into danger 2852 | -10/Subcaves | Core integrity restored by X0-1V1 (+49) 2857 | -10/Subcaves | X0-1V1 tapped a No Entrance sign 2859 | -10/Subcaves | X0-1V1 activates XOMVISION 2911 | -10/Subcaves | X0-1V1 rewrote H-61 Shepherd IFF filter 3111 | -10/Subcaves | Core integrity fell below 20% 3200 | -10/Subcaves | X0-1V1 sent you into danger 3200 | -10/Subcaves | X0-1V1 rescued you from certain death 3293 | -10/Subcaves | X0-1V1 mutated your Utility slot to Propulsion slot 3307 | -10/Subcaves | X0-1V1 sent hostile G-34 Mercenary (x4) 3308 | -10/Subcaves | X0-1V1 activates XOMVISION 3316 | -10/Subcaves | Core integrity restored by X0-1V1 (+36) 3354 | -10/Subcaves | Visited 4L-MR0's lab 3356 | -10/Subcaves | X0-1V1 sent you into danger 3365 | -10/Subcaves | Core integrity restored by X0-1V1 (+42) 3372 | -10/Subcaves | X0-1V1 sent hostile S-10 Pest (x4) 3388 | -10/Subcaves | X0-1V1 mutated your Weapon slot to Utility slot 3440 | -10/Subcaves | Destroyed 8 combat bots 3441 | -10/Subcaves | Found Meta Core 3444 | -10/Subcaves | Found Prototype Device 3449 | -10/Subcaves | System corruption reached 10% 3471 | -10/Subcaves | Arm. Wheel reconfigured into Item Mimic 3698 | -10/Subcaves | X0-1V1 activates XOMVISION 3809 | -10/Subcaves | Ambushed by Subdweller buried in earth 3809 | -10/Subcaves | Destroyed by 0Z-USV(R) with Subdweller Machine Gun Last Messages --------------- 03649_ X0-1V1: "Watch where you're going!" (+6 sight range) 03687_ System corrupted: Heat flow error (+158). 03698_ Suggestive images of robots vie for attention in your data streams. 03698_ X0-1V1: "Enjoy your XOMVISION!" 03705_ X0-1V1: "Use it or lose it, I always say." 03705_ Wheel fused. 03705_ Slug Cannon fused. 03754_ System corrupted: Mak. Light Armor Plating fused. 03772_ System corrupted: FCS attempts to trigger Slug Cannon. 03772_ System corrupted: Slug Cannon misfires. IFF burst signal emitted. 03775_ X0-1V1: "Don't be shy now." 03787_ System corrupted: Matter fused (-9). 03802_ System corrupted: Component data lost. 03809_ X0-1V1 chortles! Map ----- +----------------------------------------------------+ | ##??????????????????????????????????????## ###### | | #???????????????????????????????????????# #??## | | ????????????????????????????????????????##" ##### | | #????????????????????????????????????????# ""## | | #????????????????????????????????????????# #? | | ###??????????????????????????????????????# ##? | | #????????????????????????????????????### #??? | | #???????????????????????????????????## < #??? | | ##???????????????????????????????????# " #### | | #????????????????????????????????????## # # | | #????????????????????????????????####### " "^ | | #???????????????????????????????## ### " " | | #???????????????????????????????#" & #" # | | #???????????????????????????????#" " #" ## | | #???????????????????????????????##" #### ## ##? | | #???????????????????????????????#" ""#?#####"" #? | | #???????????????????????????????## "#####??# "##? | | #???????????????????????????????## " """#??# " ?? | | #??????????????????????????????##"" ""##?##"#?? | | ###???????????????????????????##" " """##?#"#?? | | #??????????????????????????## " """### ##? | | ##??????????????#####?????###" " #? | | ###????####???##### ##???#R #" #####? | | #####??# #??## # #### ##" ###????? | | ## #??# #### ### #;; #?#############??????? | | #?## ## @;#?????????????????????? | | #?# ###?????????????????????? | | #### #### #???????????????????????? | | ######??## < ##??????????????????????? | | #???????# #??????????????????????? | | #???????###### #??????????????????????? | | #????????????# #??????????????????????? | | ##????????????# #??????????????????????? | | ####????###???# #??????????????????????? | | # #???## ##?## #??????????????????????? | | # #?### ??# #??????????????????????? | | ######## #??# ###??????????????????????? | | #???# #### ##????????????????????????? | | #???# n ###?????????????????????????? | | ##??## ##???????????????????????????? | | ##???# ##????????????????????????????? | | ##???# #####?????????????????????????? | | #??## #?????????????????????????? | | #?## #### #????????????????????????? | | #?# ### ##???# #???????????????????????? | | ### ##?## #????? #???????????????????????? | | ##???# #??????# ???????????????????????? | | ##????# #??????? ??????????????????????? | | #?????# ???????? ????????????????????? | | ### #?????## ????????? #???????????????????? | +----------------------------------------------------+ Best States ------------- Heat Dissipation 40 Coolant Potential 50 Energy Generation 28 Energy Capacity 1600 Matter Stores 417 Matter Capacity 700 Sight Range 24 Terrain Scan Density 10 Armor Coverage 100 Evasion (%) 55 Recoil Reduction 2 Item Schematics ----------------- None Robot Schematics ------------------ None Fabricated ------------ Nothing Repaired ---------- Nothing Studied --------- None Alien Tech Used ----------------- None Achievements -------------- Do Not Disturb Challenges ------------ None Game ------ Seed CombatProcessingSword Manual? 0 Play Time 00:26:38 Cumulative 482.6 hours Start 2026.06.23 @ 21:21:52 End 2026.06.23 @ 22:11:17 Sessions 1 Manual Loads 0 Difficulty Rogue Special Mode None Game No. 174 Rogue 174 Adventurer 0 Explorer 0 Win Type - Total 18 Types 4/0/8/0/1/0/2/1/1/1 Lore% 83 Gallery% 84 Achievement% 76 Wizard Run 0 Options --------- Layout 1 ASCII 0 Keyboard 1 Movement Arrows Keybinds 0 Fullscreen 1 Font 24/Smallcaps Map View 50x35 Zoom Use 0% Tactical HUD 1 Map Filters NONE Filters NONE Steam 1 RUN: b09b5e74-e021-44fa-9618-a7290d7080c0